fUST/lending_fUST_20251220
["ID","MTS","AMOUNT","RATE_DAILY","PERIOD"]
[399231250,1766190754286,548.94832763,0.00013698,2]
[399231251,1766190754323,575.28399602,0.00013698,2]
[399231252,1766190754360,500.0,0.00013698,2]
[399231253,1766190754394,500.0,0.00013698,2]
[399231254,1766190754434,500.0,0.00013698,2]
[399231255,1766190754557,500.0,0.00013698,2]
[399231256,1766190754596,263.64136172,0.00013698,2]
[399231257,1766190754624,236.35863828,0.00013698,2]
[399231258,1766190754662,500.0,0.00013698,2]
[399231259,1766190754705,500.0,0.00013698,2]
[399231260,1766190754738,500.0,0.00013698,2]
[399231261,1766190754772,500.0,0.00013698,2]
[399231262,1766190754810,500.0,0.00013698,2]
[399231263,1766190754852,500.0,0.00013698,2]
[399231264,1766190754896,500.0,0.00013698,2]
[399231265,1766190754935,500.0,0.00013698,2]
[399231266,1766190754977,500.0,0.00013698,2]
[399231267,1766190755122,500.0,0.00013698,2]
[399231268,1766190755180,500.0,0.00013698,2]
[399231269,1766190755218,500.0,0.00013698,2]
[399231270,1766190755339,3763.65136172,0.00013699,2]
[399231271,1766190755369,273.38703073,0.00013699,2]
[399231272,1766190763734,150.0,0.00010023,2]
[399231273,1766190764152,150.0,0.000105,2]
[399231274,1766190764538,150.0,0.00010977,2]
[399231275,1766190764938,177.22,0.00011454,2]
[399231276,1766190766039,221.53,0.00011932,2]
[399231277,1766190766372,265.84,0.00012409,2]
[399231278,1766190766772,310.14,0.00012886,2]
[399231279,1766190767173,354.45,0.00013364,2]
[399231286,1766190782533,300.0,0.00013698,2]
[399231287,1766190783994,500.0,0.00013273,2]
[399231288,1766190784046,500.25576484,0.00013273,2]
[399231289,1766190784124,216.64411635,0.00013273,2]
[399231292,1766190786790,1200.0,0.00013698,2]
[399231294,1766190788156,500.0,0.00013273,2]
[399231295,1766190791584,500.0,0.00013273,2]
[399231296,1766190792824,500.0,0.00013273,2]
[399231297,1766190793041,500.0,0.00013273,2]
[399231299,1766190794340,500.0,0.00013273,2]
[399231300,1766190796758,500.0,0.00013273,2]
[399231301,1766190797792,500.0,0.00013273,2]
[399231302,1766190799428,502.12038227,0.00013273,2]
[399231304,1766190835758,150.0,9.937e-05,2]
[399231305,1766190836150,150.0,0.0001041,2]
[399231306,1766190836549,165.96,0.00010883,2]
[399231307,1766190836935,221.28,0.00011356,2]
[399231308,1766190837764,276.59,0.00011829,2]
[399231309,1766190838156,331.91,0.00012303,2]
[399231310,1766190838549,387.23,0.00012776,2]
[399231311,1766190838937,442.55,0.00013249,2]
[399231312,1766190842570,300.0,0.00013698,2]
[399231313,1766190843562,500.0,0.00013273,2]
[399231314,1766190844777,518.4802276,0.00013273,2]
[399231315,1766190846697,500.38873916,0.00013273,2]
[399231317,1766190873899,500.0,0.00013698,2]
[399231318,1766190873936,230.58711067,0.00013698,2]
[399231319,1766190873983,560.99425863,0.00013698,2]
[399231322,1766190901762,300.0,0.00013698,2]
[399231323,1766190901892,300.0,0.00013698,2]
[399231324,1766190902024,300.0,0.00013698,2]
[399231325,1766190902895,300.0,0.00013698,2]
[399231326,1766190903972,500.0,0.00013273,2]
[399231327,1766190904000,208.84792964,0.00013273,2]
[399231328,1766190904027,500.61232405,0.00013273,2]
[399231329,1766190904063,501.13384156,0.00013273,2]
[399231330,1766190904193,351.32518642,0.00013273,2]
[399231331,1766190904215,149.04377717,0.00013273,2]
[399231332,1766190904402,642.28986847,0.00013273,2]
[399231333,1766190904550,1200.0,0.00013698,2]
[399231334,1766190908322,500.41960597,0.00013273,2]
[399231335,1766190908349,500.0,0.00013273,2]
[399231336,1766190909527,150.0,0.00010625,2]
[399231337,1766190909925,150.0,0.00011131,2]
[399231338,1766190910337,150.0,0.00011637,2]
[399231339,1766190910748,150.0,0.00012143,2]
[399231340,1766190911119,150.0,0.00012649,2]
[399231341,1766190911519,169.6,0.00013155,2]
[399231342,1766190911551,351.8658195,0.00013273,2]
[399231343,1766190911965,197.87,0.00013661,2]
[399231344,1766190914252,500.0,0.00013273,2]
[399231345,1766190915480,500.0,0.00013273,2]
[399231346,1766190918038,300.0,0.00013673,2]
[399231347,1766190918757,492.27346408,0.00013273,2]
[399231348,1766190919351,500.0,0.00013273,2]
[399231349,1766190919465,500.0,0.00013273,2]
[399231350,1766190922471,500.0,0.00013273,2]
[399231351,1766190926024,500.0,0.00013273,2]
[399231352,1766190927131,500.0,0.00013273,2]
[399231353,1766190927841,500.0,0.00013273,2]
[399231354,1766190928063,746.64746481,0.00013599,2]
[399231355,1766190928229,-2190.68193389,0.00013599,2]
[399231356,1766190928561,500.0,0.00013273,2]
[399231357,1766190930716,500.0,0.00013273,2]
[399231358,1766190941701,-241.0423923,0.00013699,2]
[399231361,1766190962198,300.0,0.00013698,2]
[399231362,1766190964460,282.82617565,0.00013273,2]
[399231363,1766190967404,500.35359042,0.00013273,2]
[399231365,1766190979934,684.7229129,0.0001352,2]
[399231366,1766190980341,150.0,0.00010685,2]
[399231367,1766190980729,150.0,0.00011193,2]
[399231368,1766190980995,-5861.24075616,0.00013699,2]
[399231369,1766190981182,221.33,0.00011702,2]
[399231370,1766190981206,-9778.68,0.00013699,2]
[399231371,1766190981646,295.11,0.00012211,2]
[399231372,1766190982441,198.02041339,0.0001272,2]
[399231373,1766190982472,170.86958661,0.0001272,2]
[399231374,1766190984776,-250.00000003,0.00013229,2]
[399231375,1766190987568,4029.3739423,0.00013,2]
[399231376,1766190987925,-192.65999997,0.00013229,2]
[399231377,1766191004847,-385.08113376,0.00013698,2]
[399231381,1766191022286,300.0,0.00013698,2]
[399231382,1766191023858,165.21748583,0.00013273,2]
[399231383,1766191023932,167.14572278,0.00013273,2]
[399231386,1766191030559,500.0,0.00013273,2]
[399231387,1766191030947,500.0,0.00013273,2]
[399231388,1766191031833,300.0,0.00013673,2]
[399231389,1766191033232,500.0,0.00013273,2]
[399231390,1766191033742,500.0,0.00013273,2]
[399231391,1766191035518,500.0,0.00013273,2]
[399231392,1766191038300,500.0,0.00013273,2]
[399231393,1766191039751,500.0,0.00013273,2]
[399231394,1766191040720,500.0,0.00013273,2]
[399231395,1766191041893,-716.91043797,0.00013699,2]
[399231396,1766191043578,500.0,0.00013273,2]
[399231437,1766191056272,970.6260577,0.00013699,2]
[399231442,1766191056566,150.0,0.00010515,2]
[399231443,1766191056973,150.0,0.00011015,2]
[399231444,1766191057385,159.17,0.00011516,2]
[399231445,1766191057782,212.23,0.00012017,2]
[399231446,1766191058183,265.29,0.00012518,2]
[399231447,1766191058578,318.34,0.00013018,2]
[399231448,1766191059004,371.4,0.00013519,2]
[399231449,1766191064790,-227.24972296,0.00013699,2]
[399231472,1766191082368,300.0,0.00013698,2]
[399231473,1766191084073,416.35748466,0.00013273,2]
[399231475,1766191086577,484.07098151,0.00013698,2]
[399231476,1766191086597,715.92901849,0.00013698,2]
[399231486,1766191128292,150.0,0.0001066,2]
[399231487,1766191128690,150.0,0.00011168,2]
[399231488,1766191129367,150.0,0.00011675,2]
[399231489,1766191129792,150.0,0.00012183,2]
[399231490,1766191130201,161.79,0.00012691,2]
[399231491,1766191130591,194.14,0.00013198,2]
[399231495,1766191142663,300.0,0.00013698,2]
[399231496,1766191144102,501.64472717,0.00013273,2]
[399231497,1766191144129,500.0,0.00013273,2]
[399231498,1766191144163,500.0,0.00013273,2]
[399231499,1766191144188,500.0,0.00013273,2]
[399231500,1766191147395,500.0,0.00013273,2]
[399231502,1766191154615,500.0,0.00013273,2]
[399231503,1766191158913,500.0,0.00013273,2]
[399231504,1766191160400,500.0,0.00013273,2]
[399231505,1766191164022,500.71591428,0.00013273,2]
[399231508,1766191199655,150.0,9.569e-05,2]
[399231509,1766191200064,150.0,0.00010025,2]
[399231510,1766191200456,150.0,0.0001048,2]
[399231511,1766191200868,150.0,0.00010936,2]
[399231513,1766191201256,150.0,0.00011392,2]
[399231516,1766191201652,150.0,0.00011847,2]
[399231517,1766191201887,283.0,0.00013698,2]
[399231518,1766191202093,150.0,0.00012303,2]
[399231519,1766191202121,300.0,0.00013698,2]
[399231520,1766191202500,161.53,0.00012759,2]
[399231521,1766191202891,181.72,0.00013214,2]
[399231522,1766191202978,300.0,0.00013698,2]
[399231523,1766191203288,193.16750609,0.0001367,2]
[399231524,1766191203324,2570.16322388,0.00013599,2]
[399231525,1766191204874,1200.0,0.00013698,2]
[399231526,1766191214788,151.0,0.00013699,2]
[399231527,1766191215438,151.0,0.00013699,2]
[399231528,1766191215612,500.0,0.00013273,2]
[399231529,1766191216015,151.0,0.00013699,2]
[399231530,1766191216658,151.0,0.00013699,2]
[399231531,1766191217263,151.0,0.00013699,2]
[399231532,1766191217860,151.0,0.00013699,2]
[399231533,1766191218464,271.47118896,0.00013699,2]
[399231536,1766191262859,300.0,0.00013698,2]
[399231537,1766191264099,500.0,0.00013273,2]
[399231538,1766191264214,500.0,0.00013273,2]
[399231541,1766191278883,650.0,0.00013273,2]
[399231542,1766191281239,500.0,0.00013273,2]
[399231548,1766191307871,500.0,0.00013698,2]
[399231549,1766191308290,500.0,0.00013698,2]
[399231552,1766191322748,300.0,0.00013698,2]
[399231554,1766191331892,500.0,0.00013273,2]
[399231562,1766191334311,500.0,0.00013273,2]
[399231611,1766191357474,-236.22154446,0.00013699,2]
[399231612,1766191357497,-50.87649169,0.00013699,2]
[399231614,1766191359180,-393.27651752,0.00013699,2]
[399231634,1766191372129,680.37455367,0.00013699,2]
[399231641,1766191382738,300.0,0.00013698,2]
[399231643,1766191383446,-55.84699079,0.00013699,2]
[399231644,1766191383468,-161.37691156,0.00013699,2]
[399231645,1766191384828,1067.33792,0.00013115,2]
[399231646,1766191385798,634.0,0.00013698,2]
[399231648,1766191399762,500.0,0.00013273,2]
[399231650,1766191442550,300.0,0.00013698,2]
[399231651,1766191449383,500.0,0.00013273,2]
[399231653,1766191478750,2248.89282086,0.00013599,2]
[399231655,1766191502105,300.0,0.00013698,2]
[399231657,1766191502497,300.0,0.00013698,2]
[399231658,1766191503244,502.3110438,0.00013273,2]
[399231659,1766191503787,1200.0,0.00013698,2]
[399231660,1766191505890,500.0,0.00013273,2]
[399231661,1766191525429,500.0,0.00013273,2]
[399231666,1766191547291,500.0,0.00013698,2]
[399231670,1766191562350,178.0,0.00013698,2]
[399231674,1766191571579,500.0,0.00013273,2]
[399231675,1766191571654,500.0,0.00013273,2]
[399231677,1766191629336,236.61727461,0.00013698,2]
[399231690,1766191636476,500.0,0.00013273,2]
[399231752,1766191683158,467.62366468,0.00013273,2]
[399231753,1766191686188,500.0,0.00013273,2]
[399231764,1766191716947,-163.1602848,0.00013699,2]
[399231765,1766191720132,-72.68130682,0.00013699,2]
[399231766,1766191720154,-134.43220662,0.00013699,2]
[399231768,1766191721851,-194.95958956,0.00013699,2]
[399231854,1766191754090,1967.78121827,0.00013599,2]
[399231855,1766191796783,500.0,0.00013698,2]
[399231856,1766191797574,500.0,0.00013698,2]
[399231858,1766191803108,467.62366468,0.00013273,2]
[399231859,1766191803718,1200.0,0.00013698,2]
[399231860,1766191803796,500.0,0.00013273,2]
[399231861,1766191803920,500.0,0.00013273,2]
[399231862,1766191804253,363.65694537,0.00013273,2]
[399231865,1766191817734,500.0,0.00013273,2]
[399231866,1766191819557,-386.68877027,0.00013699,2]
[399231867,1766191821675,-200.21115038,0.00013699,2]
[399231868,1766191821747,500.0,0.00013273,2]
[399231869,1766191821914,500.0,0.00013273,2]
[399231892,1766191831852,-233.99545655,0.00013699,2]
[399231893,1766191831861,-165.23728217,0.00013699,2]
[399231894,1766191831870,-500.0,0.00013699,2]
[399231895,1766191831879,-152.1287999,0.00013699,2]
[399231896,1766191831890,-432.41893452,0.00013699,2]
[399231923,1766191837822,-8711.56139526,0.00013699,2]
[399231925,1766191837831,-5546.15300559,0.00013699,2]
[399231927,1766191837843,-7210.08820611,0.00013699,2]
[399231929,1766191837852,-185.14941286,0.00013699,2]
[399231931,1766191837862,-500.0,0.00013699,2]
[399231933,1766191837871,-500.0,0.00013699,2]
[399231935,1766191837881,-409.71438174,0.00013699,2]
[399231937,1766191837891,-448.02041339,0.00013699,2]
[399231939,1766191837900,-382.12389941,0.00013699,2]
[399231941,1766191837910,-500.0,0.00013699,2]
[399231943,1766191837920,-303.53068378,0.00013699,2]
[399231945,1766191837930,-500.0,0.00013699,2]
[399231947,1766191837940,-500.0,0.00013699,2]
[399231949,1766191837949,-500.0,0.00013699,2]
[399231951,1766191837958,-500.0,0.00013699,2]
[399231953,1766191837967,-500.0,0.00013699,2]
[399231954,1766191837976,-500.0,0.00013699,2]
[399231956,1766191837986,-500.0,0.00013699,2]
[399231958,1766191837995,-500.0,0.00013699,2]
[399231960,1766191838004,-500.0,0.00013699,2]
[399231962,1766191838013,-500.0,0.00013699,2]
[399231964,1766191838022,-500.0,0.00013699,2]
[399231966,1766191838031,-500.0,0.00013699,2]
[399231968,1766191838039,-500.0,0.00013699,2]
[399231969,1766191838048,-500.0,0.00013699,2]
[399231971,1766191838058,-500.0,0.00013699,2]
[399231973,1766191838067,-500.0,0.00013699,2]
[399231974,1766191838075,-500.0,0.00013699,2]
[399231976,1766191838085,-500.0,0.00013699,2]
[399231978,1766191838094,-500.0,0.00013699,2]
[399231980,1766191838104,-500.34936785,0.00013699,2]
[399231982,1766191838112,-500.0,0.00013699,2]
[399231984,1766191838122,-500.0,0.00013699,2]
[399231985,1766191838131,-564.7945876,0.00013699,2]
[399231987,1766191838140,-500.0,0.00013699,2]
[399231989,1766191838149,-500.0,0.00013699,2]
[399231991,1766191838159,-500.0,0.00013699,2]
[399231993,1766191838168,-500.0,0.00013699,2]
[399231995,1766191838177,-500.0,0.00013699,2]
[399231997,1766191838187,-500.0,0.00013699,2]
[399231998,1766191838196,-500.0,0.00013699,2]
[399232000,1766191838205,-500.0,0.00013699,2]
[399232002,1766191838214,-186.61304972,0.00013699,2]
[399232004,1766191838223,-500.0,0.00013699,2]
[399232006,1766191838232,-500.0,0.00013699,2]
[399232008,1766191838241,-452.5103301,0.00013699,2]
[399232010,1766191838251,-500.0,0.00013699,2]
[399232011,1766191838261,-500.0,0.00013699,2]
[399232013,1766191838271,-500.0,0.00013699,2]
[399232015,1766191838280,-317.28798019,0.00013699,2]
[399232017,1766191838289,-500.0,0.00013699,2]
[399232019,1766191838300,-500.0,0.00013699,2]
[399232021,1766191838309,-538.99931902,0.00013699,2]
[399232023,1766191838318,-500.0,0.00013699,2]
[399232025,1766191838328,-500.0,0.00013699,2]
[399232027,1766191838337,-500.0,0.00013699,2]
[399232029,1766191838347,-500.0,0.00013699,2]
[399232031,1766191838357,-500.70356904,0.00013699,2]
[399232033,1766191838366,-500.0,0.00013699,2]
[399232034,1766191838375,-307.18433324,0.00013699,2]
[399232036,1766191838384,-500.0,0.00013699,2]
[399232038,1766191838394,-500.0,0.00013699,2]
[399232040,1766191838404,-266.1753527,0.00013699,2]
[399232041,1766191838413,-500.0,0.00013699,2]
[399232043,1766191838422,-500.0,0.00013699,2]
[399232045,1766191838431,-339.65028764,0.00013699,2]
[399232047,1766191838440,-500.0,0.00013699,2]
[399232049,1766191838449,-500.0,0.00013699,2]
[399232051,1766191838458,-222.87288164,0.00013699,2]
[399232053,1766191838467,-500.0,0.00013699,2]
[399232054,1766191838475,-500.0,0.00013699,2]
[399232056,1766191838485,-500.0,0.00013699,2]
[399232058,1766191838495,-615.0,0.00013699,2]
[399232060,1766191838504,-503.15154569,0.00013821,2]
[399232062,1766191838513,-1000.0,0.00013821,2]
[399232064,1766191838522,-870.49757448,0.00013821,2]
[399232066,1766191838532,-272.65466406,0.00013821,2]
[399232068,1766191838542,-394.97990822,0.00013821,2]
[399232069,1766191838558,-310.68488338,0.00013821,2]
[399232071,1766191838568,-1000.0,0.00013821,2]
[399232073,1766191838577,-327.56681245,0.00013821,2]
[399232075,1766191838586,-500.0,0.00013971,2]
[399232076,1766191838597,-300.0,0.00013972,2]
[399232078,1766191838606,-300.0,0.00013972,2]
[399232080,1766191838616,-300.0,0.00013972,2]
[399232082,1766191838626,-300.0,0.00013972,2]
[399232084,1766191838635,-300.0,0.00013972,2]
[399232086,1766191838644,-300.0,0.00013972,2]
[399232088,1766191838654,-300.0,0.00013972,2]
[399232089,1766191838663,-300.0,0.00013972,2]
[399232091,1766191838673,-300.0,0.00013972,2]
[399232093,1766191838682,-300.0,0.00013972,2]
[399232095,1766191838692,-300.0,0.00013972,2]
[399232097,1766191838701,-300.0,0.00013972,2]
[399232099,1766191838710,-300.0,0.00013972,2]
[399232101,1766191838719,-300.0,0.00013972,2]
[399232109,1766191838809,-300.0,0.00013972,2]
[399232111,1766191838819,-537.19359997,0.00013972,2]
[399232113,1766191838828,-966.94847995,0.00013972,2]
[399232115,1766191838838,-500.0,0.00013973,2]
[399232117,1766191838847,-2474.50892089,0.00014076,2]
[399232119,1766191838856,-459.62951123,0.00014246,2]
[399232121,1766191838865,-500.0,0.00014246,2]
[399232122,1766191838874,-199.2777123,0.00014247,2]
[399232124,1766191838884,-500.0,0.00014247,2]
[399232126,1766191838893,-500.00533545,0.00014247,2]
[399232128,1766191838902,-500.0,0.00014247,2]
[399232130,1766191838911,-502.42397385,0.00014247,2]
[399232132,1766191838920,-500.62597375,0.00014247,2]
[399232134,1766191838929,-500.0,0.00014247,2]
[399232136,1766191838939,-697.88330854,0.00014247,2]
[399232137,1766191838947,-1043.62791391,0.00014247,2]
[399232139,1766191838957,-1000.0,0.00014247,2]
[399232141,1766191838966,-1000.0,0.00014247,2]
[399232143,1766191838975,-607.6869184,0.00014247,2]
[399232145,1766191838984,-500.0,0.00014247,2]
[399232147,1766191838994,-219.77215264,0.00014247,2]
[399232148,1766191839003,-500.74154496,0.00014247,2]
[399232150,1766191839012,-1000.0,0.00014247,2]
[399232152,1766191839020,-396.04546315,0.00014247,2]
[399232154,1766191839029,-500.0,0.00014247,2]
[399232156,1766191839038,-500.0,0.00014247,2]
[399232158,1766191839047,-516.30284371,0.00014247,2]
[399232160,1766191839057,-1000.0,0.00014247,2]
[399232161,1766191839066,-500.28839314,0.00014247,2]
[399232163,1766191839075,-501.75565188,0.00014247,2]
[399232165,1766191839085,-1000.0,0.00014247,2]
[399232167,1766191839095,-513.04785046,0.00014247,2]
[399232169,1766191839105,-1000.0,0.00014247,2]
[399232171,1766191839113,-839.86426274,0.00014247,2]
[399232173,1766191839122,-1001.72935912,0.00014247,2]
[399232175,1766191839131,-1000.0,0.00014247,2]
[399232177,1766191839140,-501.72224908,0.00014247,2]
[399232178,1766191839149,-1000.0,0.00014247,2]
[399232180,1766191839158,-500.0,0.00014247,2]
[399232182,1766191839168,-1145.47567907,0.00014247,2]
[399232184,1766191839177,-253.3112422,0.00014247,2]
[399232186,1766191839186,-1000.0,0.00014247,2]
[399232188,1766191839195,-502.12286594,0.00014247,2]
[399232189,1766191839205,-1000.0,0.00014247,2]
[399232191,1766191839214,-1000.85338205,0.00014247,2]
[399232193,1766191839223,-878.53308348,0.00014368,2]
[399232195,1766191839232,-327.17075009,0.00014368,2]
[399232197,1766191839242,-500.0,0.00014521,2]
[399232199,1766191839251,-3456.25242562,0.00014522,2]
[399232200,1766191839260,-1001.96875867,0.00014795,2]
[399232202,1766191839270,-502.17492876,0.00014795,2]
[399232204,1766191839279,-1500.0,0.00014795,2]
[399232206,1766191839289,-1500.0,0.00014795,2]
[399232208,1766191839298,-1300.0,0.00014795,2]
[399232210,1766191839308,-1500.0,0.00014795,2]
[399232212,1766191839317,-624.75714139,0.00014795,2]
[399232214,1766191839327,-1502.292195,0.00014795,2]
[399232216,1766191839336,-227.903958,0.00014867,2]
[399232217,1766191839346,-1000.0,0.00015,2]
[399232219,1766191839356,-881.0,0.00015067,2]
[399232221,1766191839365,-185.770647,0.00015068,2]
[399232223,1766191839375,-1500.0,0.00015342,2]
[399232225,1766191839383,-2000.0,0.00015342,2]
[399232227,1766191839392,-2000.0,0.00015342,2]
[399232229,1766191839402,-479.4,0.00015698,2]
[399232230,1766191839411,-276.11463873,0.00015699,2]
[399232232,1766191839420,-600.0,0.0001586,2]
[399232234,1766191839429,-1632.14246005,0.0001589,2]
[399232236,1766191839438,-998.4550356,0.0001589,2]
[399232238,1766191839447,-243.93311985,0.00015894,2]
[399232240,1766191839456,-1112.0,0.00016112,2]
[399232241,1766191839465,-1088.0,0.00016112,2]
[399232243,1766191839474,-250.0,0.00016112,2]
[399232245,1766191839483,-574.12855637,0.00016112,2]
[399232247,1766191839492,-250.0,0.00016112,2]
[399232249,1766191839502,-250.0,0.00016112,2]
[399232251,1766191839512,-250.0,0.00016112,2]
[399232253,1766191839521,-250.0,0.00016112,2]
[399232254,1766191839531,-250.0,0.00016112,2]
[399232256,1766191839540,-250.0,0.00016112,2]
[399232259,1766191839562,-4932.36900334,0.00016112,2]
[399232261,1766191839573,-250.0,0.00016112,2]
[399232263,1766191839582,-250.0,0.00016112,2]
[399232265,1766191839592,-250.0,0.00016112,2]
[399232267,1766191839602,-250.0,0.00016112,2]
[399232269,1766191839612,-634.44002394,0.00016149,2]
[399232270,1766191839622,-911.61583201,0.00016183,2]
[399232271,1766191839631,-3084.42844133,0.00016213,2]
[399232298,1766191840266,-3e-08,0.00016213,2]
[399232301,1766191840277,-881504.5726545,0.00016213,2]
[399232304,1766191840288,-250.0,0.00016213,2]
[399232306,1766191840300,-17966.79397612,0.00016213,2]
[399232589,1766191843000,-43141.41535993,0.00016213,2]
[399232889,1766191846032,-54052.78956809,0.00016213,2]
[399232891,1766191846041,-1683.30970655,0.00016282,2]
[399232893,1766191846050,-160.0,0.00016331,2]
[399232895,1766191846060,-167.213,0.00016382,2]
[399232897,1766191846071,-632.0,0.00016411,2]
[399232899,1766191846080,-2158.0,0.00016411,2]
[399232901,1766191846089,-1361.0,0.00016411,2]
[399232903,1766191846098,-297.026,0.0001652,2]
[399232905,1766191846107,-298.006,0.0001652,2]
[399232907,1766191846116,-595.37131296,0.0001666,2]
[399232909,1766191846125,-197.13234384,0.00016845,2]
[399232911,1766191846134,-279.71046696,0.00016853,2]
[399232913,1766191846143,-260.0,0.00016879,2]
[399232915,1766191846152,-617.40005154,0.00017208,2]
[399232917,1766191846162,-243.93311985,0.00017233,2]
[399232919,1766191846171,-229.42687204,0.00017233,2]
[399232920,1766191846181,-500.0,0.00017402,2]
[399232921,1766191846191,-360.0,0.00017427,2]
[399232922,1766191846200,-720.0,0.00017446,2]
[399232923,1766191846209,-2051.13562202,0.000175,2]
[399232924,1766191846219,-318.23382091,0.00017699,2]
[399232925,1766191846229,-640.24385345,0.00017756,2]
[399232926,1766191846238,-460.0,0.00017975,2]
[399232927,1766191846247,-1612.71518867,0.00018,5]
[399232963,1766191860300,500.0,0.00013698,2]
[399232964,1766191860543,500.0,0.00013698,2]
[399232965,1766191863864,500.0,0.00013273,2]
[399232967,1766191871276,500.0,0.00013698,2]
[399232968,1766191871335,500.0,0.00013698,2]
[399232970,1766191871389,0.94817168,0.00013698,2]
[399232971,1766191871411,186.75951026,0.00013698,2]
[399232982,1766191877341,427.86792639,0.00013698,2]
[399232985,1766191894561,500.0,0.00013698,2]
[399232986,1766191894820,500.0,0.00013698,2]
[399232988,1766191907176,256.20790074,0.00013698,2]
[399232989,1766191922538,300.0,0.00013698,2]
[399232992,1766191943504,500.0,0.00013273,2]
[399232993,1766191955898,500.0,0.00013698,2]
[399233010,1766192062080,500.0,0.00013273,2]
[399233024,1766192166176,500.0,0.00013698,2]
[399233025,1766192166400,500.0,0.00013698,2]
[399233031,1766192183937,500.0,0.00013273,2]
[399233134,1766192304969,500.0,0.00013273,2]
[399233195,1766192377517,-500.0,0.00013699,2]
[399233196,1766192377540,-391.28917746,0.00013699,2]
[399233199,1766192415213,150.0,0.00011019,2]
[399233200,1766192415603,150.0,0.00011543,2]
[399233201,1766192424948,234.74146195,0.00013273,2]
[399233202,1766192436991,-108.71082254,0.00013699,2]
[399233203,1766192437015,-259.58758956,0.00013699,2]
[399233221,1766192480850,150.0,0.00011232,2]
[399233222,1766192481266,150.0,0.00011767,2]
[399233225,1766192523765,500.0,0.00013273,2]
[399233325,1766192797203,-240.41241044,0.00013699,2]
[399233326,1766192797224,-59.58758956,0.00013699,2]
[399233327,1766192801085,-344.80835296,0.00013699,2]
[399233328,1766192803928,-97.20396633,0.00013699,2]
[399233329,1766192803949,-500.0,0.00013699,2]
[399233330,1766192803970,-23.71600698,0.00013699,2]
[399233331,1766192805483,-355.19164704,0.00013699,2]
[399233332,1766192809807,-121.09234598,0.00013699,2]
[399233333,1766192809828,-178.90765402,0.00013699,2]
[399233334,1766192813124,-270.35160461,0.00013699,2]
[399233335,1766192815310,-50.74074137,0.00013699,2]
[399233336,1766192815332,-140.97298139,0.00013699,2]
[399233337,1766192816941,-174.93640983,0.00013699,2]
[399233338,1766192821058,-177.68532822,0.00013699,2]
[399233339,1766192822568,-6.40528056,0.00013699,2]
[399233340,1766192822588,-188.39443684,0.00013699,2]
[399233341,1766192825264,-275.61858441,0.00013699,2]
[399233342,1766192826929,543.20326849,0.00013273,2]
[399233343,1766192829075,-36.3363466,0.00013699,2]
[399233344,1766192829097,-127.48000409,0.00013699,2]
[399233374,1766192940985,804.0191117,0.00013212,2]
[399233377,1766192944266,300.0,0.00013562,2]